[Event "Late-Titled-Tuesday-Blitz-October-03-2023"]
[Site "Chess.com"]
[Date "2023.10.03"]
[Round "7"]
[White "Zurability"]
[Black "elmusmolamas"]
[Result "1-0"]
[WhiteElo "2713"]
[BlackElo "2530"]
[TimeControl "180+1"]
[EndTime "15:14:01 PDT"]
[Termination "Zurability won by checkmate"]

1. Nf3 {[%clk 0:03:00.9]} 1... b6 {[%clk 0:02:58.3]} 2. g3 {[%clk 0:03:01]} 2...
Bb7 {[%clk 0:02:59.2]} 3. Bg2 {[%clk 0:03:01.7]} 3... g6 {[%clk 0:02:58.6]} 4.
O-O {[%clk 0:03:02.2]} 4... Bg7 {[%clk 0:02:59.3]} 5. d4 {[%clk 0:03:02.9]} 5...
Nf6 {[%clk 0:02:57]} 6. c4 {[%clk 0:03:01.6]} 6... O-O {[%clk 0:02:55.3]} 7. d5
{[%clk 0:02:55]} 7... Ne4 {[%clk 0:02:32.8]} 8. Nd4 {[%clk 0:02:29.6]} 8... f5
{[%clk 0:02:32.7]} 9. Be3 {[%clk 0:02:29.7]} 9... c5 {[%clk 0:02:31]} 10. dxc6
{[%clk 0:02:21.6]} 10... Nxc6 {[%clk 0:02:31.2]} 11. f3 {[%clk 0:01:54]} 11...
Nc5 {[%clk 0:02:07.9]} 12. Nc3 {[%clk 0:01:53.3]} 12... Rc8 {[%clk 0:01:57.6]}
13. Rc1 {[%clk 0:01:51]} 13... e5 {[%clk 0:01:48]} 14. Ndb5 {[%clk 0:01:48.1]}
14... Ba8 {[%clk 0:01:39.4]} 15. Nd6 {[%clk 0:01:43.1]} 15... Rb8 {[%clk
0:01:38.3]} 16. Bxc5 {[%clk 0:01:32.5]} 16... bxc5 {[%clk 0:01:39.2]} 17. Qd5+
{[%clk 0:01:31.4]} 17... Kh8 {[%clk 0:01:37.4]} 18. Nf7+ {[%clk 0:01:31.6]}
18... Rxf7 {[%clk 0:01:37.3]} 19. Qxf7 {[%clk 0:01:32.5]} 19... Rxb2 {[%clk
0:01:33.2]} 20. Rfd1 {[%clk 0:00:49.4]} 20... Nd4 {[%clk 0:01:02.5]} 21. Kf1
{[%clk 0:00:21.8]} 21... Bc6 {[%clk 0:00:51.6]} 22. Rb1 {[%clk 0:00:19.3]} 22...
Rb4 {[%clk 0:00:50.8]} 23. a3 {[%clk 0:00:18.6]} 23... Rb6 {[%clk 0:00:49.5]}
24. Nd5 {[%clk 0:00:16.3]} 24... Rb8 {[%clk 0:00:28.9]} 25. e3 {[%clk
0:00:10.6]} 25... Nc2 {[%clk 0:00:27.8]} 26. Ke2 {[%clk 0:00:07.7]} 26... h6
{[%clk 0:00:20.1]} 27. Rxb8 {[%clk 0:00:07.4]} 27... Qxb8 {[%clk 0:00:19.9]} 28.
Ne7 {[%clk 0:00:08.3]} 28... g5 {[%clk 0:00:08.2]} 29. Qxf5 {[%clk 0:00:04.2]}
29... Nxa3 {[%clk 0:00:08.5]} 30. Ng6+ {[%clk 0:00:03.8]} 30... Kg8 {[%clk
0:00:08.9]} 31. Ne7+ {[%clk 0:00:04.3]} 31... Kh8 {[%clk 0:00:09]} 32. Nxc6
{[%clk 0:00:04.8]} 32... dxc6 {[%clk 0:00:06.9]} 33. f4 {[%clk 0:00:04.7]} 33...
exf4 {[%clk 0:00:05.4]} 34. Rd7 {[%clk 0:00:03.9]} 34... Qb2+ {[%clk 0:00:04.5]}
35. Kf3 {[%clk 0:00:03.8]} 35... fxe3 {[%clk 0:00:02.8]} 36. Rd8+ {[%clk
0:00:03.8]} 36... Bf8 {[%clk 0:00:03.4]} 37. Rxf8+ {[%clk 0:00:04.1]} 37... Kg7
{[%clk 0:00:04]} 38. Qf7# {[%clk 0:00:05]} 1-0

[Event "Late-Titled-Tuesday-Blitz-October-03-2023"]
[Site "Chess.com"]
[Date "2023.10.03"]
[Round "7"]
[White "hellokostya"]
[Black "mfwagnerpeixoto"]
[Result "1-0"]
[WhiteElo "2537"]
[BlackElo "2330"]
[TimeControl "180+1"]
[EndTime "15:14:01 PDT"]
[Termination "hellokostya won on time"]

1. Nf3 {[%clk 0:03:00.9]} 1... Nf6 {[%clk 0:02:57.8]} 2. c4 {[%clk 0:03:00.4]}
2... g6 {[%clk 0:02:57.4]} 3. Nc3 {[%clk 0:03:00.4]} 3... Bg7 {[%clk 0:02:57.7]}
4. e4 {[%clk 0:03:00.5]} 4... d6 {[%clk 0:02:58.2]} 5. d4 {[%clk 0:03:01]} 5...
O-O {[%clk 0:02:58.6]} 6. Be2 {[%clk 0:03:01.1]} 6... e5 {[%clk 0:02:54.7]} 7.
d5 {[%clk 0:03:01.4]} 7... a5 {[%clk 0:02:53.9]} 8. h3 {[%clk 0:03:00.2]} 8...
Na6 {[%clk 0:02:53]} 9. Be3 {[%clk 0:02:59.3]} 9... c6 {[%clk 0:02:47.5]} 10. g4
{[%clk 0:02:54.1]} 10... cxd5 {[%clk 0:02:47.4]} 11. cxd5 {[%clk 0:02:54]} 11...
h5 {[%clk 0:02:34]} 12. g5 {[%clk 0:02:52.5]} 12... Nh7 {[%clk 0:02:32.9]} 13.
Qd2 {[%clk 0:02:48.6]} 13... Nc5 {[%clk 0:02:26.3]} 14. O-O-O {[%clk 0:02:41.7]}
14... Bd7 {[%clk 0:02:23.3]} 15. Kb1 {[%clk 0:02:39.1]} 15... b5 {[%clk
0:02:20.2]} 16. Bxc5 {[%clk 0:02:34.6]} 16... dxc5 {[%clk 0:02:19]} 17. Bxb5
{[%clk 0:02:32.2]} 17... Bxb5 {[%clk 0:02:07.1]} 18. Nxb5 {[%clk 0:02:33.1]}
18... Qd7 {[%clk 0:02:07.2]} 19. a4 {[%clk 0:02:27.2]} 19... f5 {[%clk
0:01:57.1]} 20. d6 {[%clk 0:02:19.9]} 20... fxe4 {[%clk 0:01:43]} 21. Qd5+
{[%clk 0:02:19.6]} 21... Kh8 {[%clk 0:01:43.6]} 22. Nxe5 {[%clk 0:02:15.1]}
22... Qf5 {[%clk 0:01:35.9]} 23. Nc6 {[%clk 0:01:54.2]} 23... Qxd5 {[%clk
0:01:17.4]} 24. Rxd5 {[%clk 0:01:54.9]} 24... Rxf2 {[%clk 0:01:17.6]} 25. d7
{[%clk 0:01:48.4]} 25... Rxb2+ {[%clk 0:01:16.5]} 26. Kc1 {[%clk 0:01:48.7]}
26... Ra2 {[%clk 0:00:59.9]} 27. d8=Q+ {[%clk 0:01:44.3]} 27... Rxd8 {[%clk
0:01:00]} 28. Rxd8+ {[%clk 0:01:43.9]} 28... Nf8 {[%clk 0:01:00.7]} 29. Rhd1
{[%clk 0:01:38.1]} 29... e3 {[%clk 0:00:49]} 30. Re8 {[%clk 0:01:27]} 30... e2
{[%clk 0:00:33.1]} 31. Re1 {[%clk 0:01:23.9]} 31... Ra1+ {[%clk 0:00:32.7]} 32.
Kd2 {[%clk 0:01:23.9]} 32... Ra2+ {[%clk 0:00:32.9]} 33. Kd3 {[%clk 0:01:22.2]}
33... Rxa4 {[%clk 0:00:31.6]} 34. R1xe2 {[%clk 0:01:20.7]} 34... c4+ {[%clk
0:00:31.6]} 35. Ke4 {[%clk 0:01:11.1]} 35... c3+ {[%clk 0:00:30.6]} 36. Kf3
{[%clk 0:01:09.8]} 36... Rc4 {[%clk 0:00:23.8]} 37. Ncd4 {[%clk 0:00:51.6]}
37... a4 {[%clk 0:00:15.4]} 38. Nc2 {[%clk 0:00:45.5]} 38... Rc5 {[%clk
0:00:12.3]} 39. Nba3 {[%clk 0:00:45.2]} 39... Rxg5 {[%clk 0:00:10.3]} 40. R2e4
{[%clk 0:00:43.4]} 40... Rf5+ {[%clk 0:00:08]} 41. Kg2 {[%clk 0:00:43.1]} 41...
g5 {[%clk 0:00:05.5]} 42. Rxa4 {[%clk 0:00:42.6]} 42... Kh7 {[%clk 0:00:05.3]}
43. Ra7 {[%clk 0:00:41.2]} 43... Ng6 {[%clk 0:00:04.7]} 44. Rc8 {[%clk
0:00:39.3]} 44... Nh4+ {[%clk 0:00:04.7]} 45. Kg1 {[%clk 0:00:35.6]} 45... Nf3+
{[%clk 0:00:04.4]} 46. Kf2 {[%clk 0:00:35.1]} 46... Ne5+ {[%clk 0:00:03.7]} 47.
Ke3 {[%clk 0:00:32]} 1-0

[Event "Late-Titled-Tuesday-Blitz-October-03-2023"]
[Site "Chess.com"]
[Date "2023.10.03"]
[Round "7"]
[White "shirovin"]
[Black "WilliamAlfaroCaracas"]
[Result "1-0"]
[WhiteElo "2078"]
[BlackElo "2206"]
[TimeControl "180+1"]
[EndTime "15:14:01 PDT"]
[Termination "shirovin won by checkmate"]

1. e4 {[%clk 0:03:00.9]} 1... e5 {[%clk 0:03:00.5]} 2. Nf3 {[%clk 0:03:00.2]}
2... Nc6 {[%clk 0:03:01.2]} 3. Bb5 {[%clk 0:03:00.1]} 3... f5 {[%clk 0:03:01.6]}
4. d3 {[%clk 0:02:59.3]} 4... fxe4 {[%clk 0:03:01.7]} 5. dxe4 {[%clk 0:02:59.2]}
5... Nf6 {[%clk 0:03:02.3]} 6. Qd3 {[%clk 0:02:58.4]} 6... Bb4+ {[%clk
0:02:58.8]} 7. Nc3 {[%clk 0:02:56.8]} 7... d6 {[%clk 0:02:55.2]} 8. O-O {[%clk
0:02:53.8]} 8... Bxc3 {[%clk 0:02:55]} 9. bxc3 {[%clk 0:02:53.5]} 9... O-O
{[%clk 0:02:53.5]} 10. Bc4+ {[%clk 0:02:51.2]} 10... Kh8 {[%clk 0:02:53.1]} 11.
a4 {[%clk 0:02:51.3]} 11... Qe8 {[%clk 0:02:46.9]} 12. Ng5 {[%clk 0:02:31.5]}
12... Qg6 {[%clk 0:02:41.8]} 13. Qg3 {[%clk 0:02:28.3]} 13... Nh5 {[%clk
0:02:33.1]} 14. Qd3 {[%clk 0:02:22]} 14... h6 {[%clk 0:02:23.3]} 15. Nf3 {[%clk
0:02:15.7]} 15... Bg4 {[%clk 0:02:08.4]} 16. Nh4 {[%clk 0:02:10.2]} 16... Qf6
{[%clk 0:02:08.3]} 17. g3 {[%clk 0:02:08.6]} 17... Bh3 {[%clk 0:02:01]} 18. Ng2
{[%clk 0:02:05.5]} 18... g5 {[%clk 0:01:36.9]} 19. Rb1 {[%clk 0:02:02.9]} 19...
Nf4 {[%clk 0:01:35.8]} 20. Bxf4 {[%clk 0:02:00.9]} 20... gxf4 {[%clk 0:01:35.4]}
21. Qf3 {[%clk 0:01:50.3]} 21... Rg8 {[%clk 0:01:29.1]} 22. Rxb7 {[%clk
0:01:37.9]} 22... Bg4 {[%clk 0:01:24.7]} 23. Qd3 {[%clk 0:01:36.3]} 23... f3
{[%clk 0:01:14.3]} 24. Ne3 {[%clk 0:01:34.2]} 24... Rg7 {[%clk 0:00:51.9]} 25.
Rfb1 {[%clk 0:01:32.1]} 25... h5 {[%clk 0:00:41.9]} 26. Bd5 {[%clk 0:01:28.1]}
26... Ne7 {[%clk 0:00:39.5]} 27. Rxc7 {[%clk 0:01:20.3]} 27... Nxd5 {[%clk
0:00:28.9]} 28. Qxd5 {[%clk 0:01:14.9]} 28... Rag8 {[%clk 0:00:24.9]} 29. Rxg7
{[%clk 0:01:04.3]} 29... Rxg7 {[%clk 0:00:25.4]} 30. Rb8+ {[%clk 0:00:59.6]}
30... Kh7 {[%clk 0:00:25.1]} 31. Qa8 {[%clk 0:01:00]} 31... Kg6 {[%clk
0:00:19.1]} 32. Rf8 {[%clk 0:00:56.6]} 32... Qe6 {[%clk 0:00:15.5]} 33. Re8
{[%clk 0:00:47.7]} 33... Qa2 {[%clk 0:00:09.5]} 34. Qc6 {[%clk 0:00:33.7]} 34...
Qb1+ {[%clk 0:00:06.2]} 35. Nf1 {[%clk 0:00:33.7]} 35... Bh3 {[%clk 0:00:05.2]}
36. Qxd6+ {[%clk 0:00:32.6]} 36... Kh7 {[%clk 0:00:05.4]} 37. Qa6 {[%clk
0:00:27.5]} 37... Rd7 {[%clk 0:00:04]} 38. Rxe5 {[%clk 0:00:24.6]} 38... Bxf1
{[%clk 0:00:02.7]} 39. Rxh5+ {[%clk 0:00:23.1]} 39... Kg8 {[%clk 0:00:02.7]} 40.
Qg6+ {[%clk 0:00:19.5]} 40... Rg7 {[%clk 0:00:02.5]} 41. Qe8# {[%clk 0:00:18.5]}
1-0

[Event "Late-Titled-Tuesday-Blitz-October-03-2023"]
[Site "Chess.com"]
[Date "2023.10.03"]
[Round "7"]
[White "Mikhail_Golubev"]
[Black "Aleksandar-Topalov"]
[Result "0-1"]
[WhiteElo "2599"]
[BlackElo "2440"]
[TimeControl "180+1"]
[EndTime "15:14:03 PDT"]
[Termination "Aleksandar-Topalov won on time"]

1. e4 {[%clk 0:02:57.6]} 1... e6 {[%clk 0:02:59.8]} 2. d4 {[%clk 0:02:56.1]}
2... d5 {[%clk 0:02:59.8]} 3. Nc3 {[%clk 0:02:55.6]} 3... Bb4 {[%clk 0:02:59.1]}
4. e5 {[%clk 0:02:55.3]} 4... Qd7 {[%clk 0:02:59.1]} 5. a3 {[%clk 0:02:54.6]}
5... Bxc3+ {[%clk 0:02:59.2]} 6. bxc3 {[%clk 0:02:55.3]} 6... b6 {[%clk
0:02:59.7]} 7. Qg4 {[%clk 0:02:50.6]} 7... f5 {[%clk 0:02:59.6]} 8. Qg3 {[%clk
0:02:50.1]} 8... Qf7 {[%clk 0:02:58.2]} 9. Bd3 {[%clk 0:02:41.4]} 9... Ba6
{[%clk 0:02:56.8]} 10. Ne2 {[%clk 0:02:41.5]} 10... Bxd3 {[%clk 0:02:55.9]} 11.
cxd3 {[%clk 0:02:42.4]} 11... Ne7 {[%clk 0:02:52.8]} 12. h4 {[%clk 0:02:36.6]}
12... Nbc6 {[%clk 0:02:49.8]} 13. a4 {[%clk 0:02:30.1]} 13... O-O-O {[%clk
0:02:46.6]} 14. Nf4 {[%clk 0:02:22.6]} 14... g6 {[%clk 0:02:38.6]} 15. Ba3
{[%clk 0:02:17.8]} 15... h6 {[%clk 0:02:36.2]} 16. a5 {[%clk 0:02:06]} 16... g5
{[%clk 0:02:36.2]} 17. Ne2 {[%clk 0:01:32.5]} 17... f4 {[%clk 0:01:46.6]} 18.
Qf3 {[%clk 0:01:29.6]} 18... Ng6 {[%clk 0:01:35.8]} 19. axb6 {[%clk 0:01:15.4]}
19... axb6 {[%clk 0:01:34.8]} 20. hxg5 {[%clk 0:01:11.4]} 20... hxg5 {[%clk
0:01:34.5]} 21. O-O-O {[%clk 0:01:10.4]} 21... Qf5 {[%clk 0:01:25.3]} 22. g4
{[%clk 0:01:06.3]} 22... fxg3 {[%clk 0:01:20.1]} 23. Qxf5 {[%clk 0:01:05.2]}
23... exf5 {[%clk 0:01:19.1]} 24. Nxg3 {[%clk 0:01:04.4]} 24... Nh4 {[%clk
0:01:05.8]} 25. Kc2 {[%clk 0:00:47]} 25... Kd7 {[%clk 0:00:58.3]} 26. f4 {[%clk
0:00:33.9]} 26... g4 {[%clk 0:00:57.3]} 27. Bc1 {[%clk 0:00:27.1]} 27... Ke6
{[%clk 0:00:54.6]} 28. Be3 {[%clk 0:00:27.4]} 28... Rh7 {[%clk 0:00:40.2]} 29.
c4 {[%clk 0:00:23.8]} 29... Ne7 {[%clk 0:00:36.3]} 30. Kc3 {[%clk 0:00:21.9]}
30... Rdh8 {[%clk 0:00:35.6]} 31. Ra1 {[%clk 0:00:19.8]} 31... Nf3 {[%clk
0:00:34.2]} 32. Rxh7 {[%clk 0:00:13.3]} 32... Rxh7 {[%clk 0:00:34.4]} 33. Ra7
{[%clk 0:00:08.2]} 33... Rh3 {[%clk 0:00:33.4]} 34. Ne2 {[%clk 0:00:07.7]} 34...
Kd7 {[%clk 0:00:27.2]} 35. e6+ {[%clk 0:00:07.4]} 35... Kc6 {[%clk 0:00:26.5]}
36. cxd5+ {[%clk 0:00:05.9]} 36... Nxd5+ {[%clk 0:00:26.4]} 37. Kb3 {[%clk
0:00:05.6]} 37... Nxe3 {[%clk 0:00:20.4]} 38. e7 {[%clk 0:00:05.7]} 38... Rh8
{[%clk 0:00:20.5]} 39. Ng3 {[%clk 0:00:04.8]} 39... Re8 {[%clk 0:00:20]} 40. d5+
{[%clk 0:00:04]} 40... Kxd5 {[%clk 0:00:18.3]} 0-1

[Event "Late-Titled-Tuesday-Blitz-October-03-2023"]
[Site "Chess.com"]
[Date "2023.10.03"]
[Round "7"]
[White "Firouzja2003"]
[Black "GMBenjaminBok"]
[Result "1-0"]
[WhiteElo "3128"]
[BlackElo "2984"]
[TimeControl "180+1"]
[EndTime "15:14:05 PDT"]
[Termination "Firouzja2003 won on time"]

1. Nf3 {[%clk 0:02:59.1]} 1... d5 {[%clk 0:02:59.7]} 2. b3 {[%clk 0:02:59.2]}
2... Bf5 {[%clk 0:02:59]} 3. Bb2 {[%clk 0:02:58.7]} 3... e6 {[%clk 0:02:59.4]}
4. g3 {[%clk 0:02:58.9]} 4... h6 {[%clk 0:02:59.8]} 5. Bg2 {[%clk 0:02:59.6]}
5... Nf6 {[%clk 0:03:00.2]} 6. O-O {[%clk 0:03:00.2]} 6... Be7 {[%clk
0:03:00.8]} 7. d3 {[%clk 0:03:00.6]} 7... O-O {[%clk 0:03:01.3]} 8. Nbd2 {[%clk
0:03:00.7]} 8... Bh7 {[%clk 0:03:01.4]} 9. Re1 {[%clk 0:02:58.7]} 9... a5 {[%clk
0:03:01.5]} 10. a4 {[%clk 0:02:57.4]} 10... c6 {[%clk 0:03:01.5]} 11. e4 {[%clk
0:02:57.7]} 11... Nbd7 {[%clk 0:03:00.2]} 12. h3 {[%clk 0:02:48.9]} 12... Qb6
{[%clk 0:02:50.8]} 13. Qe2 {[%clk 0:02:47]} 13... Rfc8 {[%clk 0:02:49.1]} 14.
Rac1 {[%clk 0:02:38.8]} 14... Qd8 {[%clk 0:02:43.7]} 15. exd5 {[%clk 0:02:32.9]}
15... Nxd5 {[%clk 0:02:24.2]} 16. Nd4 {[%clk 0:02:30.3]} 16... Nc5 {[%clk
0:02:13.6]} 17. Ne4 {[%clk 0:02:20.5]} 17... Nb4 {[%clk 0:01:56]} 18. Nxc5
{[%clk 0:02:07.4]} 18... Bxc5 {[%clk 0:01:54.1]} 19. Nxe6 {[%clk 0:02:07.7]}
19... fxe6 {[%clk 0:01:49.3]} 20. Qxe6+ {[%clk 0:02:07.3]} 20... Kh8 {[%clk
0:01:49.2]} 21. Re4 {[%clk 0:01:04.5]} 21... Qd6 {[%clk 0:00:42]} 22. Qg4 {[%clk
0:01:02.5]} 22... Qg6 {[%clk 0:00:35.8]} 23. Qd7 {[%clk 0:00:41.8]} 23... Rd8
{[%clk 0:00:17.2]} 24. Qxb7 {[%clk 0:00:40.9]} 24... Rab8 {[%clk 0:00:17.2]} 25.
Qc7 {[%clk 0:00:40.6]} 25... Bb6 {[%clk 0:00:14.3]} 26. Qe5 {[%clk 0:00:31.1]}
26... Re8 {[%clk 0:00:12.7]} 27. Qf4 {[%clk 0:00:20.2]} 27... Rf8 {[%clk
0:00:11.2]} 28. Qh4 {[%clk 0:00:17.7]} 28... Rxf2 {[%clk 0:00:08.5]} 29. Kh2
{[%clk 0:00:08.3]} 29... Qf7 {[%clk 0:00:04.2]} 30. Re7 {[%clk 0:00:05.8]} 30...
Qf3 {[%clk 0:00:03]} 31. Rg1 {[%clk 0:00:04]} 31... Bd4 {[%clk 0:00:02]} 32.
Bxd4 {[%clk 0:00:03.5]} 32... Rxc2 {[%clk 0:00:02]} 33. Rxg7 {[%clk 0:00:03.2]}
33... Nxd3 {[%clk 0:00:01.3]} 34. Rg4+ {[%clk 0:00:02.7]} 1-0

[Event "Late-Titled-Tuesday-Blitz-October-03-2023"]
[Site "Chess.com"]
[Date "2023.10.03"]
[Round "7"]
[White "FairChess_on_YouTube"]
[Black "jcibarra"]
[Result "1-0"]
[WhiteElo "3048"]
[BlackElo "2943"]
[TimeControl "180+1"]
[EndTime "15:14:06 PDT"]
[Termination "FairChess_on_YouTube won by resignation"]

1. c4 {[%clk 0:03:00.9]} 1... e5 {[%clk 0:02:59.6]} 2. Nc3 {[%clk 0:03:00.8]}
2... Nf6 {[%clk 0:02:59.9]} 3. e3 {[%clk 0:02:58.8]} 3... g6 {[%clk 0:02:54.7]}
4. d4 {[%clk 0:02:57]} 4... d6 {[%clk 0:02:53.2]} 5. dxe5 {[%clk 0:02:51.7]}
5... dxe5 {[%clk 0:02:53.4]} 6. Qxd8+ {[%clk 0:02:52.3]} 6... Kxd8 {[%clk
0:02:54.2]} 7. b3 {[%clk 0:02:51.9]} 7... c6 {[%clk 0:02:54]} 8. Bb2 {[%clk
0:02:48.2]} 8... Nfd7 {[%clk 0:02:45]} 9. O-O-O {[%clk 0:02:43.5]} 9... Kc7
{[%clk 0:02:44.6]} 10. f4 {[%clk 0:02:42.4]} 10... Bc5 {[%clk 0:02:40.4]} 11.
Rd3 {[%clk 0:02:04.3]} 11... Re8 {[%clk 0:02:33.7]} 12. Na4 {[%clk 0:01:51.9]}
12... e4 {[%clk 0:02:30.6]} 13. Rc3 {[%clk 0:01:46.8]} 13... Bf8 {[%clk
0:02:22.5]} 14. Nh3 {[%clk 0:01:41.6]} 14... f5 {[%clk 0:02:02.2]} 15. Rc2
{[%clk 0:01:28.6]} 15... Na6 {[%clk 0:01:57.6]} 16. Ng5 {[%clk 0:01:22.8]} 16...
h6 {[%clk 0:01:48]} 17. Nf7 {[%clk 0:01:22.9]} 17... Nb4 {[%clk 0:01:48.4]} 18.
Rd2 {[%clk 0:01:17.3]} 18... Nxa2+ {[%clk 0:01:48.3]} 19. Kb1 {[%clk 0:01:17.6]}
19... Nb4 {[%clk 0:01:47.7]} 20. Be2 {[%clk 0:01:16.4]} 20... Nd3 {[%clk
0:01:35.9]} 21. Bxd3 {[%clk 0:01:14.3]} 21... exd3 {[%clk 0:01:36.2]} 22. Rxd3
{[%clk 0:01:12.8]} 22... b6 {[%clk 0:01:12.3]} 23. Rhd1 {[%clk 0:01:10.1]} 23...
Nc5 {[%clk 0:01:06.4]} 24. Nxc5 {[%clk 0:01:05]} 24... Bxc5 {[%clk 0:01:07.1]}
25. Be5+ {[%clk 0:01:04.9]} 25... Kb7 {[%clk 0:01:07.6]} 26. Nd8+ {[%clk
0:01:02.6]} 26... Ka6 {[%clk 0:01:02.4]} 27. Kb2 {[%clk 0:00:42]} 27... b5
{[%clk 0:01:02]} 28. Bc7 {[%clk 0:00:41.4]} 28... Rxd8 {[%clk 0:00:56.9]} 29.
Rxd8 {[%clk 0:00:39.1]} 29... Bxe3 {[%clk 0:00:55.5]} 30. Re8 {[%clk 0:00:30.7]}
30... Bc5 {[%clk 0:00:49.8]} 31. Rdd8 {[%clk 0:00:28.3]} 31... Kb7 {[%clk
0:00:49]} 32. Be5 {[%clk 0:00:27]} 32... bxc4 {[%clk 0:00:42]} 33. bxc4 {[%clk
0:00:26.1]} 33... a5 {[%clk 0:00:39.4]} 34. Rg8 {[%clk 0:00:24.3]} 34... a4
{[%clk 0:00:15.8]} 35. Rxg6 {[%clk 0:00:23.9]} 35... a3+ {[%clk 0:00:15.9]} 36.
Ka2 {[%clk 0:00:23.3]} 36... Bb6 {[%clk 0:00:14.3]} 37. Re8 {[%clk 0:00:19.5]}
37... Bc5 {[%clk 0:00:09.9]} 38. Rxh6 {[%clk 0:00:17.3]} 38... Bb4 {[%clk
0:00:03.6]} 39. h4 {[%clk 0:00:15.7]} 39... c5 {[%clk 0:00:03.4]} 40. Re7+
{[%clk 0:00:13.5]} 1-0

[Event "Late-Titled-Tuesday-Blitz-October-03-2023"]
[Site "Chess.com"]
[Date "2023.10.03"]
[Round "7"]
[White "campochess"]
[Black "Nekoo04"]
[Result "0-1"]
[WhiteElo "2138"]
[BlackElo "2274"]
[TimeControl "180+1"]
[EndTime "15:14:09 PDT"]
[Termination "Nekoo04 won by resignation"]

1. e4 {[%clk 0:02:59.9]} 1... c5 {[%clk 0:02:38.3]} 2. d4 {[%clk 0:02:58.6]}
2... cxd4 {[%clk 0:02:39.2]} 3. c3 {[%clk 0:02:58.7]} 3... dxc3 {[%clk
0:02:38.2]} 4. Nxc3 {[%clk 0:02:58.8]} 4... d6 {[%clk 0:02:38]} 5. Bc4 {[%clk
0:02:58.2]} 5... e6 {[%clk 0:02:34.4]} 6. Nf3 {[%clk 0:02:56.1]} 6... Nc6 {[%clk
0:02:30.3]} 7. O-O {[%clk 0:02:55.6]} 7... Nf6 {[%clk 0:02:30.5]} 8. Qe2 {[%clk
0:02:55.5]} 8... Be7 {[%clk 0:02:25.8]} 9. Rd1 {[%clk 0:02:55.1]} 9... e5 {[%clk
0:02:23.3]} 10. h3 {[%clk 0:02:40.3]} 10... a6 {[%clk 0:01:48.6]} 11. a3 {[%clk
0:02:38]} 11... h6 {[%clk 0:01:48.1]} 12. Be3 {[%clk 0:02:36.4]} 12... O-O
{[%clk 0:01:46.5]} 13. Rd2 {[%clk 0:02:24.1]} 13... Be6 {[%clk 0:01:31.1]} 14.
Bxe6 {[%clk 0:02:21.2]} 14... fxe6 {[%clk 0:01:32]} 15. Rad1 {[%clk 0:02:20.6]}
15... Qe8 {[%clk 0:01:12.3]} 16. Bb6 {[%clk 0:02:17.9]} 16... Rc8 {[%clk
0:01:10.2]} 17. Qd3 {[%clk 0:01:47.4]} 17... Nh5 {[%clk 0:01:07.4]} 18. Qb1
{[%clk 0:01:40.4]} 18... Nf4 {[%clk 0:01:03.1]} 19. Kh2 {[%clk 0:01:35.8]} 19...
Qg6 {[%clk 0:00:59.3]} 20. Rg1 {[%clk 0:01:34.9]} 20... Qh5 {[%clk 0:00:55]} 21.
Ne2 {[%clk 0:01:23.5]} 21... Nxh3 {[%clk 0:00:41.3]} 22. Ng3 {[%clk 0:01:18.7]}
22... Qg4 {[%clk 0:00:39.1]} 23. gxh3 {[%clk 0:01:14.6]} 23... Qxf3 {[%clk
0:00:38.7]} 24. Qd1 {[%clk 0:01:11.5]} 24... Bg5 {[%clk 0:00:30.5]} 25. Qxf3
{[%clk 0:01:07.9]} 25... Rxf3 {[%clk 0:00:31.4]} 26. Rxd6 {[%clk 0:01:03.9]}
26... Nd4 {[%clk 0:00:30.5]} 27. Bxd4 {[%clk 0:01:00.8]} 27... exd4 {[%clk
0:00:31.4]} 28. Rxd4 {[%clk 0:00:58.8]} 28... Rxf2+ {[%clk 0:00:31.8]} 29. Rg2
{[%clk 0:00:58.9]} 29... Rcc2 {[%clk 0:00:31]} 30. Rxf2 {[%clk 0:00:56.3]} 30...
Rxf2+ {[%clk 0:00:31.9]} 31. Kh1 {[%clk 0:00:56]} 31... Rxb2 {[%clk 0:00:21]}
32. e5 {[%clk 0:00:55.5]} 32... Rb3 {[%clk 0:00:20.3]} 33. Ne4 {[%clk
0:00:54.3]} 33... Rxa3 {[%clk 0:00:19.9]} 34. h4 {[%clk 0:00:50.7]} 34... Bf4
{[%clk 0:00:19.4]} 35. Rd7 {[%clk 0:00:47.6]} 35... Bxe5 {[%clk 0:00:17.3]} 36.
Re7 {[%clk 0:00:44.8]} 36... Rh3+ {[%clk 0:00:17.1]} 37. Kg2 {[%clk 0:00:43.7]}
37... Rxh4 {[%clk 0:00:18]} 38. Nc5 {[%clk 0:00:43.3]} 38... Bd6 {[%clk
0:00:17.1]} 39. Re8+ {[%clk 0:00:41.2]} 39... Kf7 {[%clk 0:00:17.4]} 40. Rc8
{[%clk 0:00:41.1]} 40... Rc4 {[%clk 0:00:15.4]} 41. Nxb7 {[%clk 0:00:38.7]}
41... Rxc8 {[%clk 0:00:10]} 42. Nxd6+ {[%clk 0:00:38.4]} 42... Ke7 {[%clk
0:00:10.1]} 43. Nxc8+ {[%clk 0:00:38.3]} 43... Kd7 {[%clk 0:00:10.7]} 44. Nb6+
{[%clk 0:00:38.4]} 44... Kc6 {[%clk 0:00:11.1]} 45. Na4 {[%clk 0:00:37.5]} 45...
e5 {[%clk 0:00:10.9]} 46. Kf3 {[%clk 0:00:37.4]} 46... Kd5 {[%clk 0:00:11.1]}
47. Nb2 {[%clk 0:00:35.3]} 47... g5 {[%clk 0:00:10.2]} 48. Ke3 {[%clk
0:00:33.2]} 48... a5 {[%clk 0:00:08.6]} 49. Na4 {[%clk 0:00:32.9]} 49... h5
{[%clk 0:00:08.1]} 0-1